{"text_format":"3","workbook":"xlsx","n_sheets":2,"sheets":["Tracker voor gewichtsafname","berekeningen"],"not_rendered":{"charts":1,"defined_names":10},"read":"whole","date_system":"1900"}

{"sheet":"Tracker voor gewichtsafname","index":0,"n_rows":19,"n_cols":9,"rows_kept":19,"merged":[[0,3,0,7],[0,8,0,9],[1,3,2,9]]}
[null,"DOELGEWICHT","GRAFIEKWEERGAVE","Menna Schol",{"$nulls":4},"GEWICHTSVERLIES"]
[{"$nulls":3},"TRACKER"]
[null,{"v":172,"d":"172.0"},"WEKELIJKSE"]
[null,"DOELGEWICHT TONEN","Ja"]
[null,"In deze cel wordt door de gewichttracker het huidige gewicht bijhouden. Selecteer 'Ja' in cel C4 om de lijn van het doelgewicht weer te geven over het vlakdiagram."]
[]
[null,"DATUM","GEWICHT"]
[null,{"$f":"TODAY()-77","v":"2023-01-12"},{"v":176,"d":"176.0"}]
[null,{"$f":"TODAY()-70","v":"2023-01-19"},{"v":176,"d":"176.0"}]
[null,{"$f":"TODAY()-63","v":"2023-01-26"},177.6]
[null,{"$f":"TODAY()-56","v":"2023-02-02"},176.5]
[null,{"$f":"TODAY()-49","v":"2023-02-09"},176.1]
[null,{"$f":"TODAY()-42","v":"2023-02-16"},{"v":174,"d":"174.0"}]
[null,{"$f":"TODAY()-35","v":"2023-02-23"},173.5]
[null,{"$f":"TODAY()-28","v":"2023-03-02"},{"v":173,"d":"173.0"}]
[null,{"$f":"TODAY()-21","v":"2023-03-09"},{"v":172,"d":"172.0"}]
[null,{"$f":"TODAY()-14","v":"2023-03-16"},{"v":172,"d":"172.0"}]
[null,{"$f":"TODAY()-7","v":"2023-03-23"},{"v":173,"d":"173.0"}]
[null,{"$f":"TODAY()","v":"2023-03-30"},{"v":172,"d":"172.0"}]

{"sheet":"berekeningen","index":1,"n_rows":107,"n_cols":17,"rows_kept":107,"hidden":true}
["*** Dit blad moet verborgen blijven ***"]
[]
[{"$f":"COUNTIF(A5:A107,FALSE)","v":12},"Perioden","Waarden",{"$nulls":3},{"$f":"COUNTIF(H5:H28,\">\"&0)","v":3},"Perioden",null,"Waarden"]
[null,"Week",null,null,{"$f":"IFERROR(IF(ShowGoalWeight=\"Ja\", TRUE, FALSE),FALSE)","v":true},null,null,"Maand","EOM"]
[{"$f":"FALSE","v":false},{"$f":"IFERROR(IF(LEN('Tracker voor gewichtsafname'!$B8)=0,TODAY(),'Tracker voor gewichtsafname'!$B8),TODAY())","v":"2023-01-12"},{"$f":"IFERROR(IF(LEN('Tracker voor gewichtsafname'!$C8)=0,GoalWeight,'Tracker voor gewichtsafname'!$C8),0)","v":176},{"$f":"IFERROR(IF(MIN(ChartPeriods)=0,TODAY(),MIN(ChartPeriods)),TODAY())","v":"2023-01-12"},{"$f":"IFERROR(IF($A$5,0,IF($E$4,GoalWeight,NA())),0)","v":172},null,null,{"$f":"IFERROR(IF($A$5,TODAY(),DATE(YEAR($B5),MONTH($B5),1)),\"\")","v":"2023-01-01"},{"$f":"IFERROR(IF($A$5,TODAY(),EOMONTH($H5,0)),\"\")","v":"2023-01-31"},{"$f":"IFERROR(IF($A$5,0,AVERAGEIFS(Gewicht[GEWICHT],Gewicht[DATUM],\">=\"&$H5,Gewicht[DATUM],\"<=\"&$I5)),NA())","v":176.53333333333333}]
[{"$f":"IF((LEN('Tracker voor gewichtsafname'!$C9)=0),TRUE)","v":false},{"$f":"IFERROR(IF(A6,0,IF(LEN('Tracker voor gewichtsafname'!$B9)=0,0,'Tracker voor gewichtsafname'!$B9)),\"\")","v":"2023-01-19"},{"$f":"IFERROR(IF(A6,0,IF(LEN('Tracker voor gewichtsafname'!$C9)=0,0,'Tracker voor gewichtsafname'!$C9)),\"\")","v":176},{"$f":"IFERROR(IF(MAX(ChartPeriods)=0,TODAY(),MAX(ChartPeriods)),TODAY())","v":"2023-03-30"},{"$f":"IFERROR(IF($A$5,0,IF($E$4,GoalWeight,NA())),0)","v":172},null,null,{"$f":"IF($I5+1>MAX($B:$B),NA(),$I5+1)","v":"2023-02-01"},{"$f":"EOMONTH($H6,0)","v":"2023-02-28"},{"$f":"IFERROR(AVERAGEIFS(Gewicht[GEWICHT],Gewicht[DATUM],\">=\"&$H6,Gewicht[DATUM],\"<=\"&$I6),NA())","v":175.025}]
[{"$f":"IF((LEN('Tracker voor gewichtsafname'!$C10)=0),TRUE)","v":false},{"$f":"IFERROR(IF(A7,0,IF(LEN('Tracker voor gewichtsafname'!$B10)=0,0,'Tracker voor gewichtsafname'!$B10)),\"\")","v":"2023-01-26"},{"$f":"IFERROR(IF(A7,0,IF(LEN('Tracker voor gewichtsafname'!$C10)=0,0,'Tracker voor gewichtsafname'!$C10)),\"\")","v":177.6},{"$nulls":4},"2023-03-01","2023-03-31",{"$f":"IFERROR(AVERAGEIFS(Gewicht[GEWICHT],Gewicht[DATUM],\">=\"&$H7,Gewicht[DATUM],\"<=\"&$I7),NA())","v":172.4}]
[{"$f":"IF((LEN('Tracker voor gewichtsafname'!$C11)=0),TRUE)","v":false},{"$f":"IFERROR(IF(A8,0,IF(LEN('Tracker voor gewichtsafname'!$B11)=0,0,'Tracker voor gewichtsafname'!$B11)),\"\")","v":"2023-02-02"},{"$f":"IFERROR(IF(A8,0,IF(LEN('Tracker voor gewichtsafname'!$C11)=0,0,'Tracker voor gewichtsafname'!$C11)),\"\")","v":176.5},{"$nulls":4},{"$error":"#N/A"},{"$error":"#N/A"},{"$f":"IFERROR(AVERAGEIFS(Gewicht[GEWICHT],Gewicht[DATUM],\">=\"&$H8,Gewicht[DATUM],\"<=\"&$I8),NA())","v":{"$error":"#N/A"}}]
[{"$f":"IF((LEN('Tracker voor gewichtsafname'!$C12)=0),TRUE)","v":false},{"$f":"IFERROR(IF(A9,0,IF(LEN('Tracker voor gewichtsafname'!$B12)=0,0,'Tracker voor gewichtsafname'!$B12)),\"\")","v":"2023-02-09"},{"$f":"IFERROR(IF(A9,0,IF(LEN('Tracker voor gewichtsafname'!$C12)=0,0,'Tracker voor gewichtsafname'!$C12)),\"\")","v":176.1},{"$nulls":4},{"$error":"#N/A"},{"$error":"#N/A"},{"$f":"IFERROR(AVERAGEIFS(Gewicht[GEWICHT],Gewicht[DATUM],\">=\"&$H9,Gewicht[DATUM],\"<=\"&$I9),NA())","v":{"$error":"#N/A"}}]
[{"$f":"IF((LEN('Tracker voor gewichtsafname'!$C13)=0),TRUE)","v":false},{"$f":"IFERROR(IF(A10,0,IF(LEN('Tracker voor gewichtsafname'!$B13)=0,0,'Tracker voor gewichtsafname'!$B13)),\"\")","v":"2023-02-16"},{"$f":"IFERROR(IF(A10,0,IF(LEN('Tracker voor gewichtsafname'!$C13)=0,0,'Tracker voor gewichtsafname'!$C13)),\"\")","v":174},{"$nulls":4},{"$error":"#N/A"},{"$error":"#N/A"},{"$f":"IFERROR(AVERAGEIFS(Gewicht[GEWICHT],Gewicht[DATUM],\">=\"&$H10,Gewicht[DATUM],\"<=\"&$I10),NA())","v":{"$error":"#N/A"}}]
[{"$f":"IF((LEN('Tracker voor gewichtsafname'!$C14)=0),TRUE)","v":false},{"$f":"IFERROR(IF(A11,0,IF(LEN('Tracker voor gewichtsafname'!$B14)=0,0,'Tracker voor gewichtsafname'!$B14)),\"\")","v":"2023-02-23"},{"$f":"IFERROR(IF(A11,0,IF(LEN('Tracker voor gewichtsafname'!$C14)=0,0,'Tracker voor gewichtsafname'!$C14)),\"\")","v":173.5},{"$nulls":4},{"$error":"#N/A"},{"$error":"#N/A"},{"$f":"IFERROR(AVERAGEIFS(Gewicht[GEWICHT],Gewicht[DATUM],\">=\"&$H11,Gewicht[DATUM],\"<=\"&$I11),NA())","v":{"$error":"#N/A"}},{"$nulls":6},{"$f":"MAX($B:$B)","v":"2023-03-30"}]
[{"$f":"IF((LEN('Tracker voor gewichtsafname'!$C15)=0),TRUE)","v":false},{"$f":"IFERROR(IF(A12,0,IF(LEN('Tracker voor gewichtsafname'!$B15)=0,0,'Tracker voor gewichtsafname'!$B15)),\"\")","v":"2023-03-02"},{"$f":"IFERROR(IF(A12,0,IF(LEN('Tracker voor gewichtsafname'!$C15)=0,0,'Tracker voor gewichtsafname'!$C15)),\"\")","v":173},{"$nulls":4},{"$error":"#N/A"},{"$error":"#N/A"},{"$f":"IFERROR(AVERAGEIFS(Gewicht[GEWICHT],Gewicht[DATUM],\">=\"&$H12,Gewicht[DATUM],\"<=\"&$I12),NA())","v":{"$error":"#N/A"}}]
[{"$f":"IF((LEN('Tracker voor gewichtsafname'!$C16)=0),TRUE)","v":false},{"$f":"IFERROR(IF(A13,0,IF(LEN('Tracker voor gewichtsafname'!$B16)=0,0,'Tracker voor gewichtsafname'!$B16)),\"\")","v":"2023-03-09"},{"$f":"IFERROR(IF(A13,0,IF(LEN('Tracker voor gewichtsafname'!$C16)=0,0,'Tracker voor gewichtsafname'!$C16)),\"\")","v":172},{"$nulls":4},{"$error":"#N/A"},{"$error":"#N/A"},{"$f":"IFERROR(AVERAGEIFS(Gewicht[GEWICHT],Gewicht[DATUM],\">=\"&$H13,Gewicht[DATUM],\"<=\"&$I13),NA())","v":{"$error":"#N/A"}}]
[{"$f":"IF((LEN('Tracker voor gewichtsafname'!$C17)=0),TRUE)","v":false},{"$f":"IFERROR(IF(A14,0,IF(LEN('Tracker voor gewichtsafname'!$B17)=0,0,'Tracker voor gewichtsafname'!$B17)),\"\")","v":"2023-03-16"},{"$f":"IFERROR(IF(A14,0,IF(LEN('Tracker voor gewichtsafname'!$C17)=0,0,'Tracker voor gewichtsafname'!$C17)),\"\")","v":172},{"$nulls":4},{"$error":"#N/A"},{"$error":"#N/A"},{"$f":"IFERROR(AVERAGEIFS(Gewicht[GEWICHT],Gewicht[DATUM],\">=\"&$H14,Gewicht[DATUM],\"<=\"&$I14),NA())","v":{"$error":"#N/A"}}]
[{"$f":"IF((LEN('Tracker voor gewichtsafname'!$C18)=0),TRUE)","v":false},{"$f":"IFERROR(IF(A15,0,IF(LEN('Tracker voor gewichtsafname'!$B18)=0,0,'Tracker voor gewichtsafname'!$B18)),\"\")","v":"2023-03-23"},{"$f":"IFERROR(IF(A15,0,IF(LEN('Tracker voor gewichtsafname'!$C18)=0,0,'Tracker voor gewichtsafname'!$C18)),\"\")","v":173},{"$nulls":4},{"$error":"#N/A"},{"$error":"#N/A"},{"$f":"IFERROR(AVERAGEIFS(Gewicht[GEWICHT],Gewicht[DATUM],\">=\"&$H15,Gewicht[DATUM],\"<=\"&$I15),NA())","v":{"$error":"#N/A"}}]
[{"$f":"IF((LEN('Tracker voor gewichtsafname'!$C19)=0),TRUE)","v":false},{"$f":"IFERROR(IF(A16,0,IF(LEN('Tracker voor gewichtsafname'!$B19)=0,0,'Tracker voor gewichtsafname'!$B19)),\"\")","v":"2023-03-30"},{"$f":"IFERROR(IF(A16,0,IF(LEN('Tracker voor gewichtsafname'!$C19)=0,0,'Tracker voor gewichtsafname'!$C19)),\"\")","v":172},{"$nulls":4},{"$error":"#N/A"},{"$error":"#N/A"},{"$f":"IFERROR(AVERAGEIFS(Gewicht[GEWICHT],Gewicht[DATUM],\">=\"&$H16,Gewicht[DATUM],\"<=\"&$I16),NA())","v":{"$error":"#N/A"}}]
[{"$f":"IF((LEN('Tracker voor gewichtsafname'!$C20)=0),TRUE)","v":true},{"$f":"IFERROR(IF(A17,0,IF(LEN('Tracker voor gewichtsafname'!$B20)=0,0,'Tracker voor gewichtsafname'!$B20)),\"\")","v":"00:00:00"},{"$f":"IFERROR(IF(A17,0,IF(LEN('Tracker voor gewichtsafname'!$C20)=0,0,'Tracker voor gewichtsafname'!$C20)),\"\")","v":0},{"$nulls":4},{"$error":"#N/A"},{"$error":"#N/A"},{"$f":"IFERROR(AVERAGEIFS(Gewicht[GEWICHT],Gewicht[DATUM],\">=\"&$H17,Gewicht[DATUM],\"<=\"&$I17),NA())","v":{"$error":"#N/A"}}]
[{"$f":"IF((LEN('Tracker voor gewichtsafname'!$C21)=0),TRUE)","v":true},{"$f":"IFERROR(IF(A18,0,IF(LEN('Tracker voor gewichtsafname'!$B21)=0,0,'Tracker voor gewichtsafname'!$B21)),\"\")","v":"00:00:00"},{"$f":"IFERROR(IF(A18,0,IF(LEN('Tracker voor gewichtsafname'!$C21)=0,0,'Tracker voor gewichtsafname'!$C21)),\"\")","v":0},{"$nulls":4},{"$error":"#N/A"},{"$error":"#N/A"},{"$f":"IFERROR(AVERAGEIFS(Gewicht[GEWICHT],Gewicht[DATUM],\">=\"&$H18,Gewicht[DATUM],\"<=\"&$I18),NA())","v":{"$error":"#N/A"}}]
[{"$f":"IF((LEN('Tracker voor gewichtsafname'!$C22)=0),TRUE)","v":true},{"$f":"IFERROR(IF(A19,0,IF(LEN('Tracker voor gewichtsafname'!$B22)=0,0,'Tracker voor gewichtsafname'!$B22)),\"\")","v":"00:00:00"},{"$f":"IFERROR(IF(A19,0,IF(LEN('Tracker voor gewichtsafname'!$C22)=0,0,'Tracker voor gewichtsafname'!$C22)),\"\")","v":0},{"$nulls":4},{"$error":"#N/A"},{"$error":"#N/A"},{"$f":"IFERROR(AVERAGEIFS(Gewicht[GEWICHT],Gewicht[DATUM],\">=\"&$H19,Gewicht[DATUM],\"<=\"&$I19),NA())","v":{"$error":"#N/A"}}]
[{"$f":"IF((LEN('Tracker voor gewichtsafname'!$C23)=0),TRUE)","v":true},{"$f":"IFERROR(IF(A20,0,IF(LEN('Tracker voor gewichtsafname'!$B23)=0,0,'Tracker voor gewichtsafname'!$B23)),\"\")","v":"00:00:00"},{"$f":"IFERROR(IF(A20,0,IF(LEN('Tracker voor gewichtsafname'!$C23)=0,0,'Tracker voor gewichtsafname'!$C23)),\"\")","v":0},{"$nulls":4},{"$error":"#N/A"},{"$error":"#N/A"},{"$f":"IFERROR(AVERAGEIFS(Gewicht[GEWICHT],Gewicht[DATUM],\">=\"&$H20,Gewicht[DATUM],\"<=\"&$I20),NA())","v":{"$error":"#N/A"}}]
[{"$f":"IF((LEN('Tracker voor gewichtsafname'!$C24)=0),TRUE)","v":true},{"$f":"IFERROR(IF(A21,0,IF(LEN('Tracker voor gewichtsafname'!$B24)=0,0,'Tracker voor gewichtsafname'!$B24)),\"\")","v":"00:00:00"},{"$f":"IFERROR(IF(A21,0,IF(LEN('Tracker voor gewichtsafname'!$C24)=0,0,'Tracker voor gewichtsafname'!$C24)),\"\")","v":0},{"$nulls":4},{"$error":"#N/A"},{"$error":"#N/A"},{"$f":"IFERROR(AVERAGEIFS(Gewicht[GEWICHT],Gewicht[DATUM],\">=\"&$H21,Gewicht[DATUM],\"<=\"&$I21),NA())","v":{"$error":"#N/A"}}]
[{"$f":"IF((LEN('Tracker voor gewichtsafname'!$C25)=0),TRUE)","v":true},{"$f":"IFERROR(IF(A22,0,IF(LEN('Tracker voor gewichtsafname'!$B25)=0,0,'Tracker voor gewichtsafname'!$B25)),\"\")","v":"00:00:00"},{"$f":"IFERROR(IF(A22,0,IF(LEN('Tracker voor gewichtsafname'!$C25)=0,0,'Tracker voor gewichtsafname'!$C25)),\"\")","v":0},{"$nulls":4},{"$error":"#N/A"},{"$error":"#N/A"},{"$f":"IFERROR(AVERAGEIFS(Gewicht[GEWICHT],Gewicht[DATUM],\">=\"&$H22,Gewicht[DATUM],\"<=\"&$I22),NA())","v":{"$error":"#N/A"}}]
[{"$f":"IF((LEN('Tracker voor gewichtsafname'!$C26)=0),TRUE)","v":true},{"$f":"IFERROR(IF(A23,0,IF(LEN('Tracker voor gewichtsafname'!$B26)=0,0,'Tracker voor gewichtsafname'!$B26)),\"\")","v":"00:00:00"},{"$f":"IFERROR(IF(A23,0,IF(LEN('Tracker voor gewichtsafname'!$C26)=0,0,'Tracker voor gewichtsafname'!$C26)),\"\")","v":0},{"$nulls":4},{"$error":"#N/A"},{"$error":"#N/A"},{"$f":"IFERROR(AVERAGEIFS(Gewicht[GEWICHT],Gewicht[DATUM],\">=\"&$H23,Gewicht[DATUM],\"<=\"&$I23),NA())","v":{"$error":"#N/A"}}]
[{"$f":"IF((LEN('Tracker voor gewichtsafname'!$C27)=0),TRUE)","v":true},{"$f":"IFERROR(IF(A24,0,IF(LEN('Tracker voor gewichtsafname'!$B27)=0,0,'Tracker voor gewichtsafname'!$B27)),\"\")","v":"00:00:00"},{"$f":"IFERROR(IF(A24,0,IF(LEN('Tracker voor gewichtsafname'!$C27)=0,0,'Tracker voor gewichtsafname'!$C27)),\"\")","v":0},{"$nulls":4},{"$error":"#N/A"},{"$error":"#N/A"},{"$f":"IFERROR(AVERAGEIFS(Gewicht[GEWICHT],Gewicht[DATUM],\">=\"&$H24,Gewicht[DATUM],\"<=\"&$I24),NA())","v":{"$error":"#N/A"}}]
[{"$f":"IF((LEN('Tracker voor gewichtsafname'!$C28)=0),TRUE)","v":true},{"$f":"IFERROR(IF(A25,0,IF(LEN('Tracker voor gewichtsafname'!$B28)=0,0,'Tracker voor gewichtsafname'!$B28)),\"\")","v":"00:00:00"},{"$f":"IFERROR(IF(A25,0,IF(LEN('Tracker voor gewichtsafname'!$C28)=0,0,'Tracker voor gewichtsafname'!$C28)),\"\")","v":0},{"$nulls":4},{"$error":"#N/A"},{"$error":"#N/A"},{"$f":"IFERROR(AVERAGEIFS(Gewicht[GEWICHT],Gewicht[DATUM],\">=\"&$H25,Gewicht[DATUM],\"<=\"&$I25),NA())","v":{"$error":"#N/A"}}]
[{"$f":"IF((LEN('Tracker voor gewichtsafname'!$C29)=0),TRUE)","v":true},{"$f":"IFERROR(IF(A26,0,IF(LEN('Tracker voor gewichtsafname'!$B29)=0,0,'Tracker voor gewichtsafname'!$B29)),\"\")","v":"00:00:00"},{"$f":"IFERROR(IF(A26,0,IF(LEN('Tracker voor gewichtsafname'!$C29)=0,0,'Tracker voor gewichtsafname'!$C29)),\"\")","v":0},{"$nulls":4},{"$error":"#N/A"},{"$error":"#N/A"},{"$f":"IFERROR(AVERAGEIFS(Gewicht[GEWICHT],Gewicht[DATUM],\">=\"&$H26,Gewicht[DATUM],\"<=\"&$I26),NA())","v":{"$error":"#N/A"}}]
[{"$f":"IF((LEN('Tracker voor gewichtsafname'!$C30)=0),TRUE)","v":true},{"$f":"IFERROR(IF(A27,0,IF(LEN('Tracker voor gewichtsafname'!$B30)=0,0,'Tracker voor gewichtsafname'!$B30)),\"\")","v":"00:00:00"},{"$f":"IFERROR(IF(A27,0,IF(LEN('Tracker voor gewichtsafname'!$C30)=0,0,'Tracker voor gewichtsafname'!$C30)),\"\")","v":0},{"$nulls":4},{"$error":"#N/A"},{"$error":"#N/A"},{"$f":"IFERROR(AVERAGEIFS(Gewicht[GEWICHT],Gewicht[DATUM],\">=\"&$H27,Gewicht[DATUM],\"<=\"&$I27),NA())","v":{"$error":"#N/A"}}]
[{"$f":"IF((LEN('Tracker voor gewichtsafname'!$C31)=0),TRUE)","v":true},{"$f":"IFERROR(IF(A28,0,IF(LEN('Tracker voor gewichtsafname'!$B31)=0,0,'Tracker voor gewichtsafname'!$B31)),\"\")","v":"00:00:00"},{"$f":"IFERROR(IF(A28,0,IF(LEN('Tracker voor gewichtsafname'!$C31)=0,0,'Tracker voor gewichtsafname'!$C31)),\"\")","v":0},{"$nulls":4},{"$error":"#N/A"},{"$error":"#N/A"},{"$f":"IFERROR(AVERAGEIFS(Gewicht[GEWICHT],Gewicht[DATUM],\">=\"&$H28,Gewicht[DATUM],\"<=\"&$I28),NA())","v":{"$error":"#N/A"}}]
[{"$f":"IF((LEN('Tracker voor gewichtsafname'!$C32)=0),TRUE)","v":true},{"$f":"IFERROR(IF(A29,0,IF(LEN('Tracker voor gewichtsafname'!$B32)=0,0,'Tracker voor gewichtsafname'!$B32)),\"\")","v":"00:00:00"},{"$f":"IFERROR(IF(A29,0,IF(LEN('Tracker voor gewichtsafname'!$C32)=0,0,'Tracker voor gewichtsafname'!$C32)),\"\")","v":0}]
[{"$f":"IF((LEN('Tracker voor gewichtsafname'!$C33)=0),TRUE)","v":true},{"$f":"IFERROR(IF(A30,0,IF(LEN('Tracker voor gewichtsafname'!$B33)=0,0,'Tracker voor gewichtsafname'!$B33)),\"\")","v":"00:00:00"},{"$f":"IFERROR(IF(A30,0,IF(LEN('Tracker voor gewichtsafname'!$C33)=0,0,'Tracker voor gewichtsafname'!$C33)),\"\")","v":0}]
[{"$f":"IF((LEN('Tracker voor gewichtsafname'!$C34)=0),TRUE)","v":true},{"$f":"IFERROR(IF(A31,0,IF(LEN('Tracker voor gewichtsafname'!$B34)=0,0,'Tracker voor gewichtsafname'!$B34)),\"\")","v":"00:00:00"},{"$f":"IFERROR(IF(A31,0,IF(LEN('Tracker voor gewichtsafname'!$C34)=0,0,'Tracker voor gewichtsafname'!$C34)),\"\")","v":0}]
[{"$f":"IF((LEN('Tracker voor gewichtsafname'!$C35)=0),TRUE)","v":true},{"$f":"IFERROR(IF(A32,0,IF(LEN('Tracker voor gewichtsafname'!$B35)=0,0,'Tracker voor gewichtsafname'!$B35)),\"\")","v":"00:00:00"},{"$f":"IFERROR(IF(A32,0,IF(LEN('Tracker voor gewichtsafname'!$C35)=0,0,'Tracker voor gewichtsafname'!$C35)),\"\")","v":0}]
[{"$f":"IF((LEN('Tracker voor gewichtsafname'!$C36)=0),TRUE)","v":true},{"$f":"IFERROR(IF(A33,0,IF(LEN('Tracker voor gewichtsafname'!$B36)=0,0,'Tracker voor gewichtsafname'!$B36)),\"\")","v":"00:00:00"},{"$f":"IFERROR(IF(A33,0,IF(LEN('Tracker voor gewichtsafname'!$C36)=0,0,'Tracker voor gewichtsafname'!$C36)),\"\")","v":0}]
[{"$f":"IF((LEN('Tracker voor gewichtsafname'!$C37)=0),TRUE)","v":true},{"$f":"IFERROR(IF(A34,0,IF(LEN('Tracker voor gewichtsafname'!$B37)=0,0,'Tracker voor gewichtsafname'!$B37)),\"\")","v":"00:00:00"},{"$f":"IFERROR(IF(A34,0,IF(LEN('Tracker voor gewichtsafname'!$C37)=0,0,'Tracker voor gewichtsafname'!$C37)),\"\")","v":0}]
[{"$f":"IF((LEN('Tracker voor gewichtsafname'!$C38)=0),TRUE)","v":true},{"$f":"IFERROR(IF(A35,0,IF(LEN('Tracker voor gewichtsafname'!$B38)=0,0,'Tracker voor gewichtsafname'!$B38)),\"\")","v":"00:00:00"},{"$f":"IFERROR(IF(A35,0,IF(LEN('Tracker voor gewichtsafname'!$C38)=0,0,'Tracker voor gewichtsafname'!$C38)),\"\")","v":0}]
[{"$f":"IF((LEN('Tracker voor gewichtsafname'!$C39)=0),TRUE)","v":true},{"$f":"IFERROR(IF(A36,0,IF(LEN('Tracker voor gewichtsafname'!$B39)=0,0,'Tracker voor gewichtsafname'!$B39)),\"\")","v":"00:00:00"},{"$f":"IFERROR(IF(A36,0,IF(LEN('Tracker voor gewichtsafname'!$C39)=0,0,'Tracker voor gewichtsafname'!$C39)),\"\")","v":0}]
[{"$f":"IF((LEN('Tracker voor gewichtsafname'!$C40)=0),TRUE)","v":true},{"$f":"IFERROR(IF(A37,0,IF(LEN('Tracker voor gewichtsafname'!$B40)=0,0,'Tracker voor gewichtsafname'!$B40)),\"\")","v":"00:00:00"},{"$f":"IFERROR(IF(A37,0,IF(LEN('Tracker voor gewichtsafname'!$C40)=0,0,'Tracker voor gewichtsafname'!$C40)),\"\")","v":0}]
[{"$f":"IF((LEN('Tracker voor gewichtsafname'!$C41)=0),TRUE)","v":true},{"$f":"IFERROR(IF(A38,0,IF(LEN('Tracker voor gewichtsafname'!$B41)=0,0,'Tracker voor gewichtsafname'!$B41)),\"\")","v":"00:00:00"},{"$f":"IFERROR(IF(A38,0,IF(LEN('Tracker voor gewichtsafname'!$C41)=0,0,'Tracker voor gewichtsafname'!$C41)),\"\")","v":0}]
[{"$f":"IF((LEN('Tracker voor gewichtsafname'!$C42)=0),TRUE)","v":true},{"$f":"IFERROR(IF(A39,0,IF(LEN('Tracker voor gewichtsafname'!$B42)=0,0,'Tracker voor gewichtsafname'!$B42)),\"\")","v":"00:00:00"},{"$f":"IFERROR(IF(A39,0,IF(LEN('Tracker voor gewichtsafname'!$C42)=0,0,'Tracker voor gewichtsafname'!$C42)),\"\")","v":0}]
[{"$f":"IF((LEN('Tracker voor gewichtsafname'!$C43)=0),TRUE)","v":true},{"$f":"IFERROR(IF(A40,0,IF(LEN('Tracker voor gewichtsafname'!$B43)=0,0,'Tracker voor gewichtsafname'!$B43)),\"\")","v":"00:00:00"},{"$f":"IFERROR(IF(A40,0,IF(LEN('Tracker voor gewichtsafname'!$C43)=0,0,'Tracker voor gewichtsafname'!$C43)),\"\")","v":0}]
[{"$f":"IF((LEN('Tracker voor gewichtsafname'!$C44)=0),TRUE)","v":true},{"$f":"IFERROR(IF(A41,0,IF(LEN('Tracker voor gewichtsafname'!$B44)=0,0,'Tracker voor gewichtsafname'!$B44)),\"\")","v":"00:00:00"},{"$f":"IFERROR(IF(A41,0,IF(LEN('Tracker voor gewichtsafname'!$C44)=0,0,'Tracker voor gewichtsafname'!$C44)),\"\")","v":0}]
[{"$f":"IF((LEN('Tracker voor gewichtsafname'!$C45)=0),TRUE)","v":true},{"$f":"IFERROR(IF(A42,0,IF(LEN('Tracker voor gewichtsafname'!$B45)=0,0,'Tracker voor gewichtsafname'!$B45)),\"\")","v":"00:00:00"},{"$f":"IFERROR(IF(A42,0,IF(LEN('Tracker voor gewichtsafname'!$C45)=0,0,'Tracker voor gewichtsafname'!$C45)),\"\")","v":0}]
[{"$f":"IF((LEN('Tracker voor gewichtsafname'!$C46)=0),TRUE)","v":true},{"$f":"IFERROR(IF(A43,0,IF(LEN('Tracker voor gewichtsafname'!$B46)=0,0,'Tracker voor gewichtsafname'!$B46)),\"\")","v":"00:00:00"},{"$f":"IFERROR(IF(A43,0,IF(LEN('Tracker voor gewichtsafname'!$C46)=0,0,'Tracker voor gewichtsafname'!$C46)),\"\")","v":0}]
[{"$f":"IF((LEN('Tracker voor gewichtsafname'!$C47)=0),TRUE)","v":true},{"$f":"IFERROR(IF(A44,0,IF(LEN('Tracker voor gewichtsafname'!$B47)=0,0,'Tracker voor gewichtsafname'!$B47)),\"\")","v":"00:00:00"},{"$f":"IFERROR(IF(A44,0,IF(LEN('Tracker voor gewichtsafname'!$C47)=0,0,'Tracker voor gewichtsafname'!$C47)),\"\")","v":0}]
[{"$f":"IF((LEN('Tracker voor gewichtsafname'!$C48)=0),TRUE)","v":true},{"$f":"IFERROR(IF(A45,0,IF(LEN('Tracker voor gewichtsafname'!$B48)=0,0,'Tracker voor gewichtsafname'!$B48)),\"\")","v":"00:00:00"},{"$f":"IFERROR(IF(A45,0,IF(LEN('Tracker voor gewichtsafname'!$C48)=0,0,'Tracker voor gewichtsafname'!$C48)),\"\")","v":0}]
[{"$f":"IF((LEN('Tracker voor gewichtsafname'!$C49)=0),TRUE)","v":true},{"$f":"IFERROR(IF(A46,0,IF(LEN('Tracker voor gewichtsafname'!$B49)=0,0,'Tracker voor gewichtsafname'!$B49)),\"\")","v":"00:00:00"},{"$f":"IFERROR(IF(A46,0,IF(LEN('Tracker voor gewichtsafname'!$C49)=0,0,'Tracker voor gewichtsafname'!$C49)),\"\")","v":0}]
[{"$f":"IF((LEN('Tracker voor gewichtsafname'!$C50)=0),TRUE)","v":true},{"$f":"IFERROR(IF(A47,0,IF(LEN('Tracker voor gewichtsafname'!$B50)=0,0,'Tracker voor gewichtsafname'!$B50)),\"\")","v":"00:00:00"},{"$f":"IFERROR(IF(A47,0,IF(LEN('Tracker voor gewichtsafname'!$C50)=0,0,'Tracker voor gewichtsafname'!$C50)),\"\")","v":0}]
[{"$f":"IF((LEN('Tracker voor gewichtsafname'!$C51)=0),TRUE)","v":true},{"$f":"IFERROR(IF(A48,0,IF(LEN('Tracker voor gewichtsafname'!$B51)=0,0,'Tracker voor gewichtsafname'!$B51)),\"\")","v":"00:00:00"},{"$f":"IFERROR(IF(A48,0,IF(LEN('Tracker voor gewichtsafname'!$C51)=0,0,'Tracker voor gewichtsafname'!$C51)),\"\")","v":0}]
[{"$f":"IF((LEN('Tracker voor gewichtsafname'!$C52)=0),TRUE)","v":true},{"$f":"IFERROR(IF(A49,0,IF(LEN('Tracker voor gewichtsafname'!$B52)=0,0,'Tracker voor gewichtsafname'!$B52)),\"\")","v":"00:00:00"},{"$f":"IFERROR(IF(A49,0,IF(LEN('Tracker voor gewichtsafname'!$C52)=0,0,'Tracker voor gewichtsafname'!$C52)),\"\")","v":0}]
[{"$f":"IF((LEN('Tracker voor gewichtsafname'!$C53)=0),TRUE)","v":true},{"$f":"IFERROR(IF(A50,0,IF(LEN('Tracker voor gewichtsafname'!$B53)=0,0,'Tracker voor gewichtsafname'!$B53)),\"\")","v":"00:00:00"},{"$f":"IFERROR(IF(A50,0,IF(LEN('Tracker voor gewichtsafname'!$C53)=0,0,'Tracker voor gewichtsafname'!$C53)),\"\")","v":0}]
[{"$f":"IF((LEN('Tracker voor gewichtsafname'!$C54)=0),TRUE)","v":true},{"$f":"IFERROR(IF(A51,0,IF(LEN('Tracker voor gewichtsafname'!$B54)=0,0,'Tracker voor gewichtsafname'!$B54)),\"\")","v":"00:00:00"},{"$f":"IFERROR(IF(A51,0,IF(LEN('Tracker voor gewichtsafname'!$C54)=0,0,'Tracker voor gewichtsafname'!$C54)),\"\")","v":0}]
[{"$f":"IF((LEN('Tracker voor gewichtsafname'!$C55)=0),TRUE)","v":true},{"$f":"IFERROR(IF(A52,0,IF(LEN('Tracker voor gewichtsafname'!$B55)=0,0,'Tracker voor gewichtsafname'!$B55)),\"\")","v":"00:00:00"},{"$f":"IFERROR(IF(A52,0,IF(LEN('Tracker voor gewichtsafname'!$C55)=0,0,'Tracker voor gewichtsafname'!$C55)),\"\")","v":0}]
[{"$f":"IF((LEN('Tracker voor gewichtsafname'!$C56)=0),TRUE)","v":true},{"$f":"IFERROR(IF(A53,0,IF(LEN('Tracker voor gewichtsafname'!$B56)=0,0,'Tracker voor gewichtsafname'!$B56)),\"\")","v":"00:00:00"},{"$f":"IFERROR(IF(A53,0,IF(LEN('Tracker voor gewichtsafname'!$C56)=0,0,'Tracker voor gewichtsafname'!$C56)),\"\")","v":0}]
[{"$f":"IF((LEN('Tracker voor gewichtsafname'!$C57)=0),TRUE)","v":true},{"$f":"IFERROR(IF(A54,0,IF(LEN('Tracker voor gewichtsafname'!$B57)=0,0,'Tracker voor gewichtsafname'!$B57)),\"\")","v":"00:00:00"},{"$f":"IFERROR(IF(A54,0,IF(LEN('Tracker voor gewichtsafname'!$C57)=0,0,'Tracker voor gewichtsafname'!$C57)),\"\")","v":0}]
[{"$f":"IF((LEN('Tracker voor gewichtsafname'!$C58)=0),TRUE)","v":true},{"$f":"IFERROR(IF(A55,0,IF(LEN('Tracker voor gewichtsafname'!$B58)=0,0,'Tracker voor gewichtsafname'!$B58)),\"\")","v":"00:00:00"},{"$f":"IFERROR(IF(A55,0,IF(LEN('Tracker voor gewichtsafname'!$C58)=0,0,'Tracker voor gewichtsafname'!$C58)),\"\")","v":0}]
[{"$f":"IF((LEN('Tracker voor gewichtsafname'!$C59)=0),TRUE)","v":true},{"$f":"IFERROR(IF(A56,0,IF(LEN('Tracker voor gewichtsafname'!$B59)=0,0,'Tracker voor gewichtsafname'!$B59)),\"\")","v":"00:00:00"},{"$f":"IFERROR(IF(A56,0,IF(LEN('Tracker voor gewichtsafname'!$C59)=0,0,'Tracker voor gewichtsafname'!$C59)),\"\")","v":0}]
[{"$f":"IF((LEN('Tracker voor gewichtsafname'!$C60)=0),TRUE)","v":true},{"$f":"IFERROR(IF(A57,0,IF(LEN('Tracker voor gewichtsafname'!$B60)=0,0,'Tracker voor gewichtsafname'!$B60)),\"\")","v":"00:00:00"},{"$f":"IFERROR(IF(A57,0,IF(LEN('Tracker voor gewichtsafname'!$C60)=0,0,'Tracker voor gewichtsafname'!$C60)),\"\")","v":0}]
[{"$f":"IF((LEN('Tracker voor gewichtsafname'!$C61)=0),TRUE)","v":true},{"$f":"IFERROR(IF(A58,0,IF(LEN('Tracker voor gewichtsafname'!$B61)=0,0,'Tracker voor gewichtsafname'!$B61)),\"\")","v":"00:00:00"},{"$f":"IFERROR(IF(A58,0,IF(LEN('Tracker voor gewichtsafname'!$C61)=0,0,'Tracker voor gewichtsafname'!$C61)),\"\")","v":0}]
[{"$f":"IF((LEN('Tracker voor gewichtsafname'!$C62)=0),TRUE)","v":true},{"$f":"IFERROR(IF(A59,0,IF(LEN('Tracker voor gewichtsafname'!$B62)=0,0,'Tracker voor gewichtsafname'!$B62)),\"\")","v":"00:00:00"},{"$f":"IFERROR(IF(A59,0,IF(LEN('Tracker voor gewichtsafname'!$C62)=0,0,'Tracker voor gewichtsafname'!$C62)),\"\")","v":0}]
[{"$f":"IF((LEN('Tracker voor gewichtsafname'!$C63)=0),TRUE)","v":true},{"$f":"IFERROR(IF(A60,0,IF(LEN('Tracker voor gewichtsafname'!$B63)=0,0,'Tracker voor gewichtsafname'!$B63)),\"\")","v":"00:00:00"},{"$f":"IFERROR(IF(A60,0,IF(LEN('Tracker voor gewichtsafname'!$C63)=0,0,'Tracker voor gewichtsafname'!$C63)),\"\")","v":0}]
[{"$f":"IF((LEN('Tracker voor gewichtsafname'!$C64)=0),TRUE)","v":true},{"$f":"IFERROR(IF(A61,0,IF(LEN('Tracker voor gewichtsafname'!$B64)=0,0,'Tracker voor gewichtsafname'!$B64)),\"\")","v":"00:00:00"},{"$f":"IFERROR(IF(A61,0,IF(LEN('Tracker voor gewichtsafname'!$C64)=0,0,'Tracker voor gewichtsafname'!$C64)),\"\")","v":0}]
[{"$f":"IF((LEN('Tracker voor gewichtsafname'!$C65)=0),TRUE)","v":true},{"$f":"IFERROR(IF(A62,0,IF(LEN('Tracker voor gewichtsafname'!$B65)=0,0,'Tracker voor gewichtsafname'!$B65)),\"\")","v":"00:00:00"},{"$f":"IFERROR(IF(A62,0,IF(LEN('Tracker voor gewichtsafname'!$C65)=0,0,'Tracker voor gewichtsafname'!$C65)),\"\")","v":0}]
[{"$f":"IF((LEN('Tracker voor gewichtsafname'!$C66)=0),TRUE)","v":true},{"$f":"IFERROR(IF(A63,0,IF(LEN('Tracker voor gewichtsafname'!$B66)=0,0,'Tracker voor gewichtsafname'!$B66)),\"\")","v":"00:00:00"},{"$f":"IFERROR(IF(A63,0,IF(LEN('Tracker voor gewichtsafname'!$C66)=0,0,'Tracker voor gewichtsafname'!$C66)),\"\")","v":0}]
[{"$f":"IF((LEN('Tracker voor gewichtsafname'!$C67)=0),TRUE)","v":true},{"$f":"IFERROR(IF(A64,0,IF(LEN('Tracker voor gewichtsafname'!$B67)=0,0,'Tracker voor gewichtsafname'!$B67)),\"\")","v":"00:00:00"},{"$f":"IFERROR(IF(A64,0,IF(LEN('Tracker voor gewichtsafname'!$C67)=0,0,'Tracker voor gewichtsafname'!$C67)),\"\")","v":0}]
[{"$f":"IF((LEN('Tracker voor gewichtsafname'!$C68)=0),TRUE)","v":true},{"$f":"IFERROR(IF(A65,0,IF(LEN('Tracker voor gewichtsafname'!$B68)=0,0,'Tracker voor gewichtsafname'!$B68)),\"\")","v":"00:00:00"},{"$f":"IFERROR(IF(A65,0,IF(LEN('Tracker voor gewichtsafname'!$C68)=0,0,'Tracker voor gewichtsafname'!$C68)),\"\")","v":0}]
[{"$f":"IF((LEN('Tracker voor gewichtsafname'!$C69)=0),TRUE)","v":true},{"$f":"IFERROR(IF(A66,0,IF(LEN('Tracker voor gewichtsafname'!$B69)=0,0,'Tracker voor gewichtsafname'!$B69)),\"\")","v":"00:00:00"},{"$f":"IFERROR(IF(A66,0,IF(LEN('Tracker voor gewichtsafname'!$C69)=0,0,'Tracker voor gewichtsafname'!$C69)),\"\")","v":0}]
[{"$f":"IF((LEN('Tracker voor gewichtsafname'!$C70)=0),TRUE)","v":true},{"$f":"IFERROR(IF(A67,0,IF(LEN('Tracker voor gewichtsafname'!$B70)=0,0,'Tracker voor gewichtsafname'!$B70)),\"\")","v":"00:00:00"},{"$f":"IFERROR(IF(A67,0,IF(LEN('Tracker voor gewichtsafname'!$C70)=0,0,'Tracker voor gewichtsafname'!$C70)),\"\")","v":0}]
[{"$f":"IF((LEN('Tracker voor gewichtsafname'!$C71)=0),TRUE)","v":true},{"$f":"IFERROR(IF(A68,0,IF(LEN('Tracker voor gewichtsafname'!$B71)=0,0,'Tracker voor gewichtsafname'!$B71)),\"\")","v":"00:00:00"},{"$f":"IFERROR(IF(A68,0,IF(LEN('Tracker voor gewichtsafname'!$C71)=0,0,'Tracker voor gewichtsafname'!$C71)),\"\")","v":0}]
[{"$f":"IF((LEN('Tracker voor gewichtsafname'!$C72)=0),TRUE)","v":true},{"$f":"IFERROR(IF(A69,0,IF(LEN('Tracker voor gewichtsafname'!$B72)=0,0,'Tracker voor gewichtsafname'!$B72)),\"\")","v":"00:00:00"},{"$f":"IFERROR(IF(A69,0,IF(LEN('Tracker voor gewichtsafname'!$C72)=0,0,'Tracker voor gewichtsafname'!$C72)),\"\")","v":0}]
[{"$f":"IF((LEN('Tracker voor gewichtsafname'!$C73)=0),TRUE)","v":true},{"$f":"IFERROR(IF(A70,0,IF(LEN('Tracker voor gewichtsafname'!$B73)=0,0,'Tracker voor gewichtsafname'!$B73)),\"\")","v":"00:00:00"},{"$f":"IFERROR(IF(A70,0,IF(LEN('Tracker voor gewichtsafname'!$C73)=0,0,'Tracker voor gewichtsafname'!$C73)),\"\")","v":0}]
[{"$f":"IF((LEN('Tracker voor gewichtsafname'!$C74)=0),TRUE)","v":true},{"$f":"IFERROR(IF(A71,0,IF(LEN('Tracker voor gewichtsafname'!$B74)=0,0,'Tracker voor gewichtsafname'!$B74)),\"\")","v":"00:00:00"},{"$f":"IFERROR(IF(A71,0,IF(LEN('Tracker voor gewichtsafname'!$C74)=0,0,'Tracker voor gewichtsafname'!$C74)),\"\")","v":0}]
[{"$f":"IF((LEN('Tracker voor gewichtsafname'!$C75)=0),TRUE)","v":true},{"$f":"IFERROR(IF(A72,0,IF(LEN('Tracker voor gewichtsafname'!$B75)=0,0,'Tracker voor gewichtsafname'!$B75)),\"\")","v":"00:00:00"},{"$f":"IFERROR(IF(A72,0,IF(LEN('Tracker voor gewichtsafname'!$C75)=0,0,'Tracker voor gewichtsafname'!$C75)),\"\")","v":0}]
[{"$f":"IF((LEN('Tracker voor gewichtsafname'!$C76)=0),TRUE)","v":true},{"$f":"IFERROR(IF(A73,0,IF(LEN('Tracker voor gewichtsafname'!$B76)=0,0,'Tracker voor gewichtsafname'!$B76)),\"\")","v":"00:00:00"},{"$f":"IFERROR(IF(A73,0,IF(LEN('Tracker voor gewichtsafname'!$C76)=0,0,'Tracker voor gewichtsafname'!$C76)),\"\")","v":0}]
[{"$f":"IF((LEN('Tracker voor gewichtsafname'!$C77)=0),TRUE)","v":true},{"$f":"IFERROR(IF(A74,0,IF(LEN('Tracker voor gewichtsafname'!$B77)=0,0,'Tracker voor gewichtsafname'!$B77)),\"\")","v":"00:00:00"},{"$f":"IFERROR(IF(A74,0,IF(LEN('Tracker voor gewichtsafname'!$C77)=0,0,'Tracker voor gewichtsafname'!$C77)),\"\")","v":0}]
[{"$f":"IF((LEN('Tracker voor gewichtsafname'!$C78)=0),TRUE)","v":true},{"$f":"IFERROR(IF(A75,0,IF(LEN('Tracker voor gewichtsafname'!$B78)=0,0,'Tracker voor gewichtsafname'!$B78)),\"\")","v":"00:00:00"},{"$f":"IFERROR(IF(A75,0,IF(LEN('Tracker voor gewichtsafname'!$C78)=0,0,'Tracker voor gewichtsafname'!$C78)),\"\")","v":0}]
[{"$f":"IF((LEN('Tracker voor gewichtsafname'!$C79)=0),TRUE)","v":true},{"$f":"IFERROR(IF(A76,0,IF(LEN('Tracker voor gewichtsafname'!$B79)=0,0,'Tracker voor gewichtsafname'!$B79)),\"\")","v":"00:00:00"},{"$f":"IFERROR(IF(A76,0,IF(LEN('Tracker voor gewichtsafname'!$C79)=0,0,'Tracker voor gewichtsafname'!$C79)),\"\")","v":0}]
[{"$f":"IF((LEN('Tracker voor gewichtsafname'!$C80)=0),TRUE)","v":true},{"$f":"IFERROR(IF(A77,0,IF(LEN('Tracker voor gewichtsafname'!$B80)=0,0,'Tracker voor gewichtsafname'!$B80)),\"\")","v":"00:00:00"},{"$f":"IFERROR(IF(A77,0,IF(LEN('Tracker voor gewichtsafname'!$C80)=0,0,'Tracker voor gewichtsafname'!$C80)),\"\")","v":0}]
[{"$f":"IF((LEN('Tracker voor gewichtsafname'!$C81)=0),TRUE)","v":true},{"$f":"IFERROR(IF(A78,0,IF(LEN('Tracker voor gewichtsafname'!$B81)=0,0,'Tracker voor gewichtsafname'!$B81)),\"\")","v":"00:00:00"},{"$f":"IFERROR(IF(A78,0,IF(LEN('Tracker voor gewichtsafname'!$C81)=0,0,'Tracker voor gewichtsafname'!$C81)),\"\")","v":0}]
[{"$f":"IF((LEN('Tracker voor gewichtsafname'!$C82)=0),TRUE)","v":true},{"$f":"IFERROR(IF(A79,0,IF(LEN('Tracker voor gewichtsafname'!$B82)=0,0,'Tracker voor gewichtsafname'!$B82)),\"\")","v":"00:00:00"},{"$f":"IFERROR(IF(A79,0,IF(LEN('Tracker voor gewichtsafname'!$C82)=0,0,'Tracker voor gewichtsafname'!$C82)),\"\")","v":0}]
[{"$f":"IF((LEN('Tracker voor gewichtsafname'!$C83)=0),TRUE)","v":true},{"$f":"IFERROR(IF(A80,0,IF(LEN('Tracker voor gewichtsafname'!$B83)=0,0,'Tracker voor gewichtsafname'!$B83)),\"\")","v":"00:00:00"},{"$f":"IFERROR(IF(A80,0,IF(LEN('Tracker voor gewichtsafname'!$C83)=0,0,'Tracker voor gewichtsafname'!$C83)),\"\")","v":0}]
[{"$f":"IF((LEN('Tracker voor gewichtsafname'!$C84)=0),TRUE)","v":true},{"$f":"IFERROR(IF(A81,0,IF(LEN('Tracker voor gewichtsafname'!$B84)=0,0,'Tracker voor gewichtsafname'!$B84)),\"\")","v":"00:00:00"},{"$f":"IFERROR(IF(A81,0,IF(LEN('Tracker voor gewichtsafname'!$C84)=0,0,'Tracker voor gewichtsafname'!$C84)),\"\")","v":0}]
[{"$f":"IF((LEN('Tracker voor gewichtsafname'!$C85)=0),TRUE)","v":true},{"$f":"IFERROR(IF(A82,0,IF(LEN('Tracker voor gewichtsafname'!$B85)=0,0,'Tracker voor gewichtsafname'!$B85)),\"\")","v":"00:00:00"},{"$f":"IFERROR(IF(A82,0,IF(LEN('Tracker voor gewichtsafname'!$C85)=0,0,'Tracker voor gewichtsafname'!$C85)),\"\")","v":0}]
[{"$f":"IF((LEN('Tracker voor gewichtsafname'!$C86)=0),TRUE)","v":true},{"$f":"IFERROR(IF(A83,0,IF(LEN('Tracker voor gewichtsafname'!$B86)=0,0,'Tracker voor gewichtsafname'!$B86)),\"\")","v":"00:00:00"},{"$f":"IFERROR(IF(A83,0,IF(LEN('Tracker voor gewichtsafname'!$C86)=0,0,'Tracker voor gewichtsafname'!$C86)),\"\")","v":0}]
[{"$f":"IF((LEN('Tracker voor gewichtsafname'!$C87)=0),TRUE)","v":true},{"$f":"IFERROR(IF(A84,0,IF(LEN('Tracker voor gewichtsafname'!$B87)=0,0,'Tracker voor gewichtsafname'!$B87)),\"\")","v":"00:00:00"},{"$f":"IFERROR(IF(A84,0,IF(LEN('Tracker voor gewichtsafname'!$C87)=0,0,'Tracker voor gewichtsafname'!$C87)),\"\")","v":0}]
[{"$f":"IF((LEN('Tracker voor gewichtsafname'!$C88)=0),TRUE)","v":true},{"$f":"IFERROR(IF(A85,0,IF(LEN('Tracker voor gewichtsafname'!$B88)=0,0,'Tracker voor gewichtsafname'!$B88)),\"\")","v":"00:00:00"},{"$f":"IFERROR(IF(A85,0,IF(LEN('Tracker voor gewichtsafname'!$C88)=0,0,'Tracker voor gewichtsafname'!$C88)),\"\")","v":0}]
[{"$f":"IF((LEN('Tracker voor gewichtsafname'!$C89)=0),TRUE)","v":true},{"$f":"IFERROR(IF(A86,0,IF(LEN('Tracker voor gewichtsafname'!$B89)=0,0,'Tracker voor gewichtsafname'!$B89)),\"\")","v":"00:00:00"},{"$f":"IFERROR(IF(A86,0,IF(LEN('Tracker voor gewichtsafname'!$C89)=0,0,'Tracker voor gewichtsafname'!$C89)),\"\")","v":0}]
[{"$f":"IF((LEN('Tracker voor gewichtsafname'!$C90)=0),TRUE)","v":true},{"$f":"IFERROR(IF(A87,0,IF(LEN('Tracker voor gewichtsafname'!$B90)=0,0,'Tracker voor gewichtsafname'!$B90)),\"\")","v":"00:00:00"},{"$f":"IFERROR(IF(A87,0,IF(LEN('Tracker voor gewichtsafname'!$C90)=0,0,'Tracker voor gewichtsafname'!$C90)),\"\")","v":0}]
[{"$f":"IF((LEN('Tracker voor gewichtsafname'!$C91)=0),TRUE)","v":true},{"$f":"IFERROR(IF(A88,0,IF(LEN('Tracker voor gewichtsafname'!$B91)=0,0,'Tracker voor gewichtsafname'!$B91)),\"\")","v":"00:00:00"},{"$f":"IFERROR(IF(A88,0,IF(LEN('Tracker voor gewichtsafname'!$C91)=0,0,'Tracker voor gewichtsafname'!$C91)),\"\")","v":0}]
[{"$f":"IF((LEN('Tracker voor gewichtsafname'!$C92)=0),TRUE)","v":true},{"$f":"IFERROR(IF(A89,0,IF(LEN('Tracker voor gewichtsafname'!$B92)=0,0,'Tracker voor gewichtsafname'!$B92)),\"\")","v":"00:00:00"},{"$f":"IFERROR(IF(A89,0,IF(LEN('Tracker voor gewichtsafname'!$C92)=0,0,'Tracker voor gewichtsafname'!$C92)),\"\")","v":0}]
[{"$f":"IF((LEN('Tracker voor gewichtsafname'!$C93)=0),TRUE)","v":true},{"$f":"IFERROR(IF(A90,0,IF(LEN('Tracker voor gewichtsafname'!$B93)=0,0,'Tracker voor gewichtsafname'!$B93)),\"\")","v":"00:00:00"},{"$f":"IFERROR(IF(A90,0,IF(LEN('Tracker voor gewichtsafname'!$C93)=0,0,'Tracker voor gewichtsafname'!$C93)),\"\")","v":0}]
[{"$f":"IF((LEN('Tracker voor gewichtsafname'!$C94)=0),TRUE)","v":true},{"$f":"IFERROR(IF(A91,0,IF(LEN('Tracker voor gewichtsafname'!$B94)=0,0,'Tracker voor gewichtsafname'!$B94)),\"\")","v":"00:00:00"},{"$f":"IFERROR(IF(A91,0,IF(LEN('Tracker voor gewichtsafname'!$C94)=0,0,'Tracker voor gewichtsafname'!$C94)),\"\")","v":0}]
[{"$f":"IF((LEN('Tracker voor gewichtsafname'!$C95)=0),TRUE)","v":true},{"$f":"IFERROR(IF(A92,0,IF(LEN('Tracker voor gewichtsafname'!$B95)=0,0,'Tracker voor gewichtsafname'!$B95)),\"\")","v":"00:00:00"},{"$f":"IFERROR(IF(A92,0,IF(LEN('Tracker voor gewichtsafname'!$C95)=0,0,'Tracker voor gewichtsafname'!$C95)),\"\")","v":0}]
[{"$f":"IF((LEN('Tracker voor gewichtsafname'!$C96)=0),TRUE)","v":true},{"$f":"IFERROR(IF(A93,0,IF(LEN('Tracker voor gewichtsafname'!$B96)=0,0,'Tracker voor gewichtsafname'!$B96)),\"\")","v":"00:00:00"},{"$f":"IFERROR(IF(A93,0,IF(LEN('Tracker voor gewichtsafname'!$C96)=0,0,'Tracker voor gewichtsafname'!$C96)),\"\")","v":0}]
[{"$f":"IF((LEN('Tracker voor gewichtsafname'!$C97)=0),TRUE)","v":true},{"$f":"IFERROR(IF(A94,0,IF(LEN('Tracker voor gewichtsafname'!$B97)=0,0,'Tracker voor gewichtsafname'!$B97)),\"\")","v":"00:00:00"},{"$f":"IFERROR(IF(A94,0,IF(LEN('Tracker voor gewichtsafname'!$C97)=0,0,'Tracker voor gewichtsafname'!$C97)),\"\")","v":0}]
[{"$f":"IF((LEN('Tracker voor gewichtsafname'!$C98)=0),TRUE)","v":true},{"$f":"IFERROR(IF(A95,0,IF(LEN('Tracker voor gewichtsafname'!$B98)=0,0,'Tracker voor gewichtsafname'!$B98)),\"\")","v":"00:00:00"},{"$f":"IFERROR(IF(A95,0,IF(LEN('Tracker voor gewichtsafname'!$C98)=0,0,'Tracker voor gewichtsafname'!$C98)),\"\")","v":0}]
[{"$f":"IF((LEN('Tracker voor gewichtsafname'!$C99)=0),TRUE)","v":true},{"$f":"IFERROR(IF(A96,0,IF(LEN('Tracker voor gewichtsafname'!$B99)=0,0,'Tracker voor gewichtsafname'!$B99)),\"\")","v":"00:00:00"},{"$f":"IFERROR(IF(A96,0,IF(LEN('Tracker voor gewichtsafname'!$C99)=0,0,'Tracker voor gewichtsafname'!$C99)),\"\")","v":0}]
[{"$f":"IF((LEN('Tracker voor gewichtsafname'!$C100)=0),TRUE)","v":true},{"$f":"IFERROR(IF(A97,0,IF(LEN('Tracker voor gewichtsafname'!$B100)=0,0,'Tracker voor gewichtsafname'!$B100)),\"\")","v":"00:00:00"},{"$f":"IFERROR(IF(A97,0,IF(LEN('Tracker voor gewichtsafname'!$C100)=0,0,'Tracker voor gewichtsafname'!$C100)),\"\")","v":0}]
[{"$f":"IF((LEN('Tracker voor gewichtsafname'!$C101)=0),TRUE)","v":true},{"$f":"IFERROR(IF(A98,0,IF(LEN('Tracker voor gewichtsafname'!$B101)=0,0,'Tracker voor gewichtsafname'!$B101)),\"\")","v":"00:00:00"},{"$f":"IFERROR(IF(A98,0,IF(LEN('Tracker voor gewichtsafname'!$C101)=0,0,'Tracker voor gewichtsafname'!$C101)),\"\")","v":0}]
[{"$f":"IF((LEN('Tracker voor gewichtsafname'!$C102)=0),TRUE)","v":true},{"$f":"IFERROR(IF(A99,0,IF(LEN('Tracker voor gewichtsafname'!$B102)=0,0,'Tracker voor gewichtsafname'!$B102)),\"\")","v":"00:00:00"},{"$f":"IFERROR(IF(A99,0,IF(LEN('Tracker voor gewichtsafname'!$C102)=0,0,'Tracker voor gewichtsafname'!$C102)),\"\")","v":0}]
[{"$f":"IF((LEN('Tracker voor gewichtsafname'!$C103)=0),TRUE)","v":true},{"$f":"IFERROR(IF(A100,0,IF(LEN('Tracker voor gewichtsafname'!$B103)=0,0,'Tracker voor gewichtsafname'!$B103)),\"\")","v":"00:00:00"},{"$f":"IFERROR(IF(A100,0,IF(LEN('Tracker voor gewichtsafname'!$C103)=0,0,'Tracker voor gewichtsafname'!$C103)),\"\")","v":0}]
[{"$f":"IF((LEN('Tracker voor gewichtsafname'!$C104)=0),TRUE)","v":true},{"$f":"IFERROR(IF(A101,0,IF(LEN('Tracker voor gewichtsafname'!$B104)=0,0,'Tracker voor gewichtsafname'!$B104)),\"\")","v":"00:00:00"},{"$f":"IFERROR(IF(A101,0,IF(LEN('Tracker voor gewichtsafname'!$C104)=0,0,'Tracker voor gewichtsafname'!$C104)),\"\")","v":0}]
[{"$f":"IF((LEN('Tracker voor gewichtsafname'!$C105)=0),TRUE)","v":true},{"$f":"IFERROR(IF(A102,0,IF(LEN('Tracker voor gewichtsafname'!$B105)=0,0,'Tracker voor gewichtsafname'!$B105)),\"\")","v":"00:00:00"},{"$f":"IFERROR(IF(A102,0,IF(LEN('Tracker voor gewichtsafname'!$C105)=0,0,'Tracker voor gewichtsafname'!$C105)),\"\")","v":0}]
[{"$f":"IF((LEN('Tracker voor gewichtsafname'!$C106)=0),TRUE)","v":true},{"$f":"IFERROR(IF(A103,0,IF(LEN('Tracker voor gewichtsafname'!$B106)=0,0,'Tracker voor gewichtsafname'!$B106)),\"\")","v":"00:00:00"},{"$f":"IFERROR(IF(A103,0,IF(LEN('Tracker voor gewichtsafname'!$C106)=0,0,'Tracker voor gewichtsafname'!$C106)),\"\")","v":0}]
[{"$f":"IF((LEN('Tracker voor gewichtsafname'!$C107)=0),TRUE)","v":true},{"$f":"IFERROR(IF(A104,0,IF(LEN('Tracker voor gewichtsafname'!$B107)=0,0,'Tracker voor gewichtsafname'!$B107)),\"\")","v":"00:00:00"},{"$f":"IFERROR(IF(A104,0,IF(LEN('Tracker voor gewichtsafname'!$C107)=0,0,'Tracker voor gewichtsafname'!$C107)),\"\")","v":0}]
[{"$f":"IF((LEN('Tracker voor gewichtsafname'!$C108)=0),TRUE)","v":true},{"$f":"IFERROR(IF(A105,0,IF(LEN('Tracker voor gewichtsafname'!$B108)=0,0,'Tracker voor gewichtsafname'!$B108)),\"\")","v":"00:00:00"},{"$f":"IFERROR(IF(A105,0,IF(LEN('Tracker voor gewichtsafname'!$C108)=0,0,'Tracker voor gewichtsafname'!$C108)),\"\")","v":0}]
[{"$f":"IF((LEN('Tracker voor gewichtsafname'!$C109)=0),TRUE)","v":true},{"$f":"IFERROR(IF(A106,0,IF(LEN('Tracker voor gewichtsafname'!$B109)=0,0,'Tracker voor gewichtsafname'!$B109)),\"\")","v":"00:00:00"},{"$f":"IFERROR(IF(A106,0,IF(LEN('Tracker voor gewichtsafname'!$C109)=0,0,'Tracker voor gewichtsafname'!$C109)),\"\")","v":0}]
[{"$f":"IF((LEN('Tracker voor gewichtsafname'!$C110)=0),TRUE)","v":true},{"$f":"IFERROR(IF(A107,0,IF(LEN('Tracker voor gewichtsafname'!$B110)=0,0,'Tracker voor gewichtsafname'!$B110)),\"\")","v":"00:00:00"},{"$f":"IFERROR(IF(A107,0,IF(LEN('Tracker voor gewichtsafname'!$C110)=0,0,'Tracker voor gewichtsafname'!$C110)),\"\")","v":0}]